bitfinex/quotes_SOLUSD_20240905
["timestamp","ask_amount","ask_price","bid_price","bid_amount"]
[1725542942477,8.66791338,133.99,133.96,7.4647]
[1725542943492,16.13111338,133.99,133.95,26.1285]
[1725542943878,7.4638,133.98,133.95,18.6632]
[1725542944888,7.4647,133.97,133.92,26.1332]
[1725542945090,7.4647,133.97,133.92,18.6666]
[1725542945291,7.4647,133.97,133.93,7.4661]
[1725542945496,7.4639,133.98,133.94,7.466]
[1725542948685,8.66791338,133.99,133.94,7.466]
[1725542948686,16.13131338,133.99,133.95,7.4649]
[1725542948908,16.13131338,133.99,133.96,1.4926487]
[1725542949695,16.13131338,133.99,133.95,7.4649]
[1725542950001,8.66791338,133.99,133.96,7.4648]
[1725542950201,8.66791338,133.99,133.97,7.4639]
[1725542950578,8.66791338,133.99,133.96,27.6191217]
[1725542950798,7.4642,133.98,133.94,7.4659]
[1725542952298,8.66791338,133.99,133.93,7.4662]
[1725542952299,7.4644,133.97,133.93,7.4662]
[1725542952807,7.4649,133.96,133.92,26.1336]
[1725542952979,7.4645,133.97,133.93,7.4665]
[1725542953898,7.4645,133.97,133.94,1.49294832]
[1725542954312,7.4645,133.97,133.93,7.4665]
[1725542954603,7.4645,133.97,133.94,1.49295365]
[1725542954800,7.4639,133.98,133.94,1.49295365]
[1725542955394,7.4638,133.98,133.94,7.4654]
[1725542957808,8.66791338,133.99,133.98,7.4638]
[1725542957986,0.8532025,133.99,133.98,7.4638]
[1725542959720,0.8532025,133.99,133.98,52.4238]
[1725542960383,0.8532025,133.99,133.98,7.4638]
[1725542965291,0.8532025,133.99,133.98,7.4638]
[1725542965520,0.8532025,133.99,133.98,8.95592008]
[1725542966113,0.8532025,133.99,133.98,69.74052008]
[1725542967618,0.8532025,133.99,133.98,92.22052008]
[1725542968299,0.8532025,133.99,133.98,97.66188309]
[1725542968610,31.84174322,134.1,134.05,7.4597]
[1725542968803,24.38414322,134.1,134.05,7.4597]
[1725542969209,24.38414322,134.1,134.05,8.95145995]
[1725542969210,28.76036377,134.1,134.05,8.95145995]
[1725542969405,24.38414322,134.1,134.05,8.95145995]
[1725542969606,24.38414322,134.1,134.06,7.4593]
[1725542969806,16.5752,134.1,134.07,1.49156207]
[1725542970314,16.5752,134.1,134.06,26.1067]
[1725542971297,24.0326,134.1,134.06,26.1067]
[1725542971897,24.0326,134.1,134.07,1.49154862]
[1725542972476,7.4574,134.1,134.07,1.49154862]
[1725542972719,0.8532025,134.12,134.08,8.94919311]
[1725542972924,0.8532025,134.12,134.09,18.6438]
[1725542973115,0.8532025,134.12,134.1,1.49116351]
[1725542973425,0.8532025,134.12,134.1,8.94776351]
[1725542973629,0.8532025,134.12,134.11,1.49106466]
[1725542974533,0.8532025,134.12,134.11,8.94756466]
[1725542974705,0.8532025,134.12,134.11,7.4565]
[1725542974904,0.8532025,134.12,134.11,8.94748829]
[1725542975921,0.8532025,134.12,134.11,7.4565]
[1725542977437,0.8532025,134.12,134.11,8.94735975]
[1725542977731,0.8532025,134.12,134.11,7.4565]
[1725542978512,0.8532025,134.12,134.11,60.59378977]
[1725542980324,30.69862689,134.22,134.17,7.4526]
[1725542980325,15.2535309,134.22,134.17,7.4526]
[1725542980523,15.2535309,134.22,134.18,1.49011767]
[1725542980714,15.2535309,134.22,134.18,8.94271767]
[1725542981319,15.2535309,134.22,134.18,1.49011767]
[1725542981517,15.2535309,134.22,134.17,7.4531]
[1725542981518,7.4511,134.21,134.17,7.4531]
[1725542981717,6.9511,134.21,134.17,7.4531]
[1725542981930,7.4516,134.2,134.16,26.0868]
[1725542982246,7.4516,134.2,134.16,18.6332]
[1725542982538,7.8030309,134.22,134.13,7.455]
[1725542982539,7.4528,134.18,134.13,7.455]
[1725542982828,7.4522,134.19,134.15,7.4543]
[1725542983620,7.4527,134.18,134.14,26.0914]
[1725542984833,7.4527,134.18,134.15,1.49055438]
[1725542985238,7.4522,134.19,134.15,1.49055438]
[1725542985699,7.4522,134.19,134.15,7.4542]
[1725542986940,7.4527,134.18,134.14,18.6367]
[1725542987241,7.4527,134.18,134.14,26.0912]
[1725542989924,7.4527,134.18,134.15,1.49066175]
[1725542990117,7.4527,134.18,134.14,26.0912]
[1725542990822,15.25597776,134.19,134.14,26.0912]
[1725542991026,7.80377776,134.19,134.14,26.0912]
[1725542991224,7.80377776,134.19,134.15,8.94472031]
[1725542991428,7.80377776,134.19,134.15,1.49052031]
[1725542991750,7.80377776,134.19,134.16,7.4533]
[1725542991927,7.80377776,134.19,134.17,7.4532]
[1725542992754,7.4506,134.22,134.18,1.49035958]
[1725542992971,7.4506,134.22,134.17,7.4532]
[1725542993158,7.451,134.21,134.17,8.94346699]
[1725542993455,7.451,134.21,134.18,1.49026699]
[1725542994642,7.80086749,134.24,134.19,16.5413]
[1725542994854,0.8532025,134.25,134.19,18.0315638]
[1725542995152,0.8532025,134.25,134.24,7.4493]
[1725542996255,0.8532025,134.25,134.24,8.93867632]
[1725542996424,0.8532025,134.25,134.24,15.21327632]
[1725542996829,0.8532025,134.25,134.24,104.59844123]
[1725542997036,0.8532025,134.25,134.24,141.84514123]
[1725542997533,0.8532025,134.25,134.24,98.48423047]
[1725542997925,0.8532025,134.25,134.24,96.99514123]
[1725542998129,0.8532025,134.25,134.24,29.7467]
[1725542999452,0.8532025,134.25,134.24,8.93868845]
[1725543000333,0.8532025,134.25,134.24,83.79042968]
[1725543000657,0.07783432,134.27,134.26,63.3098]
[1725543000859,0.07783432,134.27,134.26,94.80047264]
[1725543001030,0.07783432,134.27,134.26,93.31154123]
[1725543001541,0.07783432,134.27,134.26,57.55927521]
[1725543001727,0.07783432,134.27,134.26,27.55771926]
[1725543001938,0.07783432,134.27,134.26,57.55946049]
[1725543002147,0.07783432,134.27,134.26,56.07044123]
[1725543002453,0.07783432,134.27,134.26,26.0687]
[1725543002670,0.07783432,134.27,134.26,18.6205]
[1725543003031,0.07783432,134.27,134.2,37.2552]
[1725543003334,0.07783432,134.27,134.26,7.4482]
[1725543003545,0.07783432,134.27,134.26,8.93730986]
[1725543004556,0.07783432,134.27,134.26,7.4482]
[1725543005119,0.07783432,134.27,134.26,59.43654123]
[1725543005232,15.23884547,134.36,134.32,7.4448]
[1725543005437,7.79564547,134.36,134.33,1.48867463]
[1725543005656,15.23834547,134.36,134.33,1.48867463]
[1725543006364,15.23834547,134.36,134.33,1.48862104]
[1725543006540,7.79564547,134.36,134.35,7.4432]
[1725543006860,0.8532025,134.38,134.33,18.6096]
[1725543007038,0.8532025,134.38,134.33,26.0538]
[1725543007761,8.2949025,134.38,134.33,26.0538]
[1725543008354,0.8532025,134.38,134.35,7.4431]
[1725543008561,8.2948025,134.38,134.33,26.0535]
[1725543008735,0.8532025,134.38,134.34,7.4435]
[1725543009136,0.8532025,134.38,134.33,26.0538]
[1725543009972,7.4427,134.36,134.31,37.44714123]
[1725543010164,8.2953025,134.38,134.32,7.4447]
[1725543010368,8.2953025,134.38,134.33,7.4441]
[1725543010658,0.8532025,134.38,134.34,7.4435]
[1725543011505,0.8532025,134.38,134.35,31.49004006]
[1725543011766,0.8532025,134.38,134.33,52.03714123]
[1725543011767,0.8532025,134.38,134.37,37.44384123]
[1725543012158,0.8532025,134.38,134.37,43.69754123]
[1725543012367,0.8532025,134.38,134.37,45.18543067]
[1725543012757,0.8532025,134.38,134.37,43.69754123]
[1725543014365,7.79096345,134.47,134.44,7.4378]
[1725543014585,7.79096345,134.47,134.45,1.48725438]
[1725543014764,7.79096345,134.47,134.42,1.48725512]
[1725543014981,7.79096345,134.47,134.43,1.48723309]
[1725543015175,7.79096345,134.47,134.43,7.4384]
[1725543015378,7.79096345,134.47,134.44,8.92545664]
[1725543015583,7.79096345,134.47,134.44,7.4382]
[1725543016564,7.4405,134.4,134.35,23.1628]
[1725543016762,22.7586,134.46,134.36,18.606]
[1725543016763,7.4399,134.41,134.36,18.606]
[1725543017582,41.3522,134.46,134.38,7.4415]
[1725543017583,7.4394,134.42,134.38,7.4415]
[1725543017763,41.3522,134.46,134.38,7.4415]
[1725543017959,7.4394,134.42,134.37,7.442]
[1725543018295,7.44,134.41,134.36,26.0482]
[1725543018618,18.5964,134.44,134.34,6.2537]
[1725543018792,18.5964,134.44,134.35,8.931203]
[1725543018793,7.4405,134.4,134.35,8.931203]
[1725543019091,59.9445,134.46,134.34,6.2537]
[1725543019256,59.9445,134.46,134.06,26.9712777]
[1725543019257,10.0,134.43,134.3,6.0948]
[1725543019455,37.1859,134.46,134.27,7.4476]
[1725543019456,7.445,134.32,134.27,7.4476]
[1725543019769,7.445,134.32,134.26,6.0948]
[1725543019770,7.4455,134.31,134.26,13.5429]
[1725543020185,18.6079,134.36,134.24,18.623]
[1725543020391,7.4459,134.31,134.25,8.93786491]
[1725543020561,18.6079,134.36,134.25,31.49100614]
[1725543020761,18.6079,134.36,134.25,31.36610717]
[1725543021178,18.6079,134.36,134.28,7.4468]
[1725543021179,7.4444,134.33,134.28,7.4468]
[1725543021379,7.4438,134.34,134.29,1.48887946]
[1725543021562,7.4438,134.34,134.29,7.4464]
[1725543021965,6.511,134.37,134.3,1.48876569]
[1725543022186,13.9531,134.37,134.31,7.4453]
[1725543022357,6.511,134.37,134.32,1.48864093]
[1725543022683,7.442,134.38,134.32,7.4448]
[1725543023278,7.79442362,134.4,134.33,1.48846099]
[1725543023474,22.0673,134.41,134.36,7.4426]
[1725543023673,22.0673,134.41,134.34,18.6085]
[1725543023886,22.0673,134.41,134.31,43.63314712]
[1725543023887,22.0673,134.41,134.32,7.4446]
[1725543024067,22.0673,134.41,134.31,13.7487]
[1725543024068,7.4429,134.36,134.31,13.7487]
[1725543024273,7.4422,134.37,134.31,7.4452]
[1725543024773,7.4422,134.37,134.32,7.4448]
[1725543024977,7.4422,134.37,134.33,1.48847125]
[1725543025290,7.4415,134.38,134.33,7.4441]
[1725543025659,22.0673,134.41,134.28,105.07304712]
[1725543025968,18.6049,134.38,134.28,26.0638]
[1725543026287,32.0673,134.41,134.24,22.8712]
[1725543026288,22.0673,134.4,134.24,22.8712]
[1725543026493,7.4454,134.32,134.27,7.4472]
[1725543026677,7.4455,134.31,134.26,26.0676]
[1725543026988,6.2274,134.35,134.27,1.48926902]
[1725543027197,6.0484,134.38,134.28,20.10603131]
[1725543027581,6.0484,134.38,134.28,18.6169]
[1725543027993,6.0484,134.38,134.29,1.48886471]
[1725543028069,6.0484,134.38,134.3,1.48881014]
[1725543028591,6.0484,134.38,134.32,7.4448]
[1725543028904,7.4416,134.38,134.33,8.93270689]
[1725543029096,7.4422,134.37,134.33,1.48850689]
[1725543029394,7.4443,134.33,134.28,18.6175]
[1725543029759,7.445,134.32,134.28,18.6175]
[1725543030065,7.4444,134.33,134.28,26.0645]
[1725543030285,18.6049,134.38,134.29,1.48897429]
[1725543030591,18.6049,134.38,134.3,7.4455]
[1725543030982,7.4432,134.35,134.3,7.4455]
[1725543031491,7.4425,134.37,134.31,1.48874077]
[1725543031677,7.442,134.38,134.33,7.4442]
[1725543031993,7.4415,134.39,134.34,8.93180913]
[1725543032170,7.4418,134.38,134.34,1.48850913]
[1725543032364,15.8766,134.41,134.36,7.4426]
[1725543032365,7.4408,134.4,134.36,7.4426]
[1725543032577,26.3880115,134.44,134.37,1.48822745]
[1725543032578,7.7916115,134.44,134.37,1.48822745]
[1725543032792,7.4389,134.43,134.38,26.0448]
[1725543032988,7.7916115,134.44,134.38,26.0448]
[1725543032989,7.4393,134.42,134.39,1.48792165]
[1725543033199,7.7916115,134.44,134.36,7.4421]
[1725543033200,7.4399,134.41,134.36,7.4421]
[1725543033491,7.7916115,134.44,134.32,34.7974]
[1725543033790,18.6006,134.41,134.32,42.2417]
[1725543033972,58.4611,134.45,134.31,6.3641]
[1725543033973,18.6034,134.39,134.31,6.3641]
[1725543034395,7.4433,134.35,134.31,13.8094]
[1725543034690,7.4433,134.35,134.3,26.06]
[1725543034897,18.6034,134.39,134.3,18.6141]
[1725543034898,7.4441,134.34,134.3,18.6141]
[1725543035266,7.4441,134.34,134.27,43.5037]
[1725543035267,7.4451,134.32,134.27,32.3338]
[1725543035682,7.4461,134.3,134.27,6.2681]
[1725543035870,18.6089,134.35,134.24,18.623]
[1725543036075,18.6089,134.35,134.24,26.0722]
[1725543036076,7.4466,134.29,134.24,26.0722]
[1725543037116,18.6089,134.35,134.26,18.6194]
[1725543037267,18.6117,134.33,134.23,24.8924]
[1725543037610,7.4493,134.25,134.19,18.6297]
[1725543037771,18.615,134.3,134.21,7.4507]
[1725543038097,15.9735,134.31,134.21,18.6261]
[1725543038802,7.4471,134.29,134.22,7.4499]
[1725543038980,6.4913,134.32,134.23,20.11294907]
[1725543038981,7.4462,134.3,134.23,20.11294907]
[1725543039192,7.4454,134.31,134.26,7.4482]
[1725543039380,7.4454,134.31,134.27,1.4892314]
[1725543039692,41.4074,134.36,134.27,1.4892314]
[1725543039693,7.4449,134.32,134.27,1.4892314]
[1725543040005,41.4074,134.36,134.25,18.6207]
[1725543040175,41.4074,134.36,134.26,1.48941801]
[1725543040500,41.4074,134.36,134.25,18.6207]
[1725543040701,7.4459,134.31,134.26,7.4481]
[1725543040901,22.8005,134.36,134.22,18.6257]
[1725543041104,7.4487,134.25,134.2,7.451]
[1725543041397,18.6163,134.3,134.19,18.6302]
[1725543041696,18.6188,134.28,134.17,6.4633]
[1725543041904,18.6242,134.24,134.13,6.4633]
[1725543042202,7.4533,134.17,134.13,6.4633]
[1725543042376,37.245,134.25,134.13,6.4633]
[1725543042377,7.4521,134.2,134.13,25.1007]
[1725543042801,7.4521,134.2,134.14,7.4548]
[1725543043315,7.4521,134.2,134.15,1.49044448]
[1725543043537,7.4523,134.19,134.14,7.4548]
[1725543043673,18.6264,134.22,134.1,18.6426]
[1725543043874,7.4537,134.17,134.11,7.456]
[1725543044098,7.4537,134.17,134.12,8.94669096]
[1725543044278,6.4023,134.21,134.12,20.12969096]
[1725543044480,7.4527,134.18,134.12,26.0943]
[1725543044692,6.4023,134.21,134.12,26.0943]
[1725543044903,7.4538,134.16,134.12,18.6389]
[1725543045087,18.629,134.2,134.08,25.1231]
[1725543045612,7.4541,134.16,134.09,1.49117083]
[1725543045890,15.2851,134.19,134.08,32.5808]
[1725543046147,15.2851,134.19,134.08,26.1019]
[1725543046399,7.4547,134.15,134.09,7.4576]
[1725543047483,7.4547,134.15,134.1,8.94833397]
[1725543047693,7.4549,134.14,134.09,7.4576]
[1725543048202,7.4544,134.15,134.1,7.457]
[1725543048382,18.6327,134.18,134.08,18.6442]
[1725543048587,18.6327,134.18,134.06,16.8348025]
[1725543048588,37.2666,134.17,134.06,0.8532025]
[1725543048791,7.4572,134.1,134.06,0.8532025]
[1725543049214,7.4577,134.09,134.06,0.8532025]
[1725543049882,7.4571,134.1,134.06,0.8532025]
[1725543050082,7.4571,134.1,134.06,9.80414982]
[1725543050599,7.4564,134.12,134.07,7.4587]
[1725543050982,7.4564,134.12,134.07,7.4586]
[1725543051374,7.4576,134.1,134.06,0.8532025]
[1725543051678,18.6381,134.14,134.06,0.8532025]
[1725543052080,9.0919403,134.13,134.06,0.8532025]
[1725543052406,7.4579,134.09,134.06,0.8532025]
[1725543052621,18.6412,134.12,134.06,0.8532025]
[1725543052903,7.4587,134.07,134.06,0.8532025]
[1725543053318,15.5732,134.11,134.06,0.8532025]
[1725543053526,71.4906403,134.13,134.06,0.8532025]
[1725543053527,34.2114403,134.13,134.06,0.8532025]
[1725543053893,7.4587,134.07,134.06,0.8532025]
[1725543055188,34.2114403,134.13,134.06,0.8532025]
[1725543055395,15.5724403,134.13,134.06,0.8532025]
[1725543055944,7.4571,134.11,134.06,8.3123025]
[1725543056101,7.79372643,134.13,134.07,1.49166572]
[1725543056312,7.79372643,134.13,134.07,1.46168572]
[1725543056507,15.24962643,134.13,134.08,7.458]
[1725543056717,7.4566,134.11,134.06,8.3124025]
[1725543056910,7.79372643,134.13,134.06,0.8532025]
[1725543058217,7.4578,134.09,134.06,0.8532025]
[1725543058796,7.4572,134.1,134.06,0.8532025]
[1725543059192,7.4564,134.12,134.06,8.3124025]
[1725543059507,7.79372643,134.13,134.06,8.3124025]
[1725543059508,7.4567,134.11,134.06,8.3124025]
[1725543059708,7.4572,134.1,134.06,0.8532025]
[1725543060010,7.4566,134.11,134.06,8.3123025]
[1725543060210,7.4571,134.1,134.06,8.3123025]
[1725543060507,7.79372643,134.13,134.08,7.4581]
[1725543060827,7.79372643,134.13,134.06,0.8532025]
[1725543060828,7.4577,134.09,134.06,0.8532025]
[1725543061015,7.4572,134.1,134.06,0.8532025]
[1725543061202,7.79372643,134.13,134.07,7.4587]
[1725543061514,15.24922643,134.13,134.08,8.94898421]
[1725543061813,7.4561,134.12,134.07,26.1043]
[1725543062018,7.4561,134.12,134.07,18.646]
[1725543062191,7.79372643,134.13,134.12,7.456]
[1725543062396,18.629,134.19,134.11,38.82057941]
[1725543062609,7.79618651,134.21,134.17,26.086]
[1725543062900,7.79618651,134.21,134.18,8.94286375]
[1725543063313,7.79618651,134.21,134.19,18.6292]
[1725543063494,6.0776,134.29,134.19,18.6292]
[1725543063495,7.4477,134.27,134.21,7.4505]
[1725543063701,18.614,134.31,134.23,7.4498]
[1725543063702,7.796186,134.29,134.23,7.4498]
[1725543064028,7.79606913,134.27,134.24,1.4897306]
[1725543064321,6.0776,134.33,134.24,1.4897306]
[1725543064509,7.7909551,134.31,134.24,1.4897306]
[1725543065230,7.7909551,134.31,134.22,18.626]
[1725543065231,7.7909551,134.31,134.23,7.4494]
[1725543065431,7.7909551,134.31,134.22,18.626]
[1725543065432,7.4477,134.27,134.22,18.626]
[1725543065715,7.7909551,134.31,134.23,1.48956675]
[1725543065716,7.447,134.29,134.23,1.48956675]
[1725543065919,7.447,134.29,134.23,7.4498]
[1725543066098,7.447,134.29,134.24,1.48950749]
[1725543066507,7.4472,134.28,134.24,1.48950749]
[1725543066702,7.4465,134.29,134.24,1.48950749]
[1725543067041,7.7909551,134.31,134.27,7.4475]
[1725543067325,7.79511321,134.35,134.3,7.446]
[1725543067529,7.79511321,134.35,134.31,1.48880095]
[1725543067781,15.23861321,134.35,134.31,1.48880095]
[1725543067897,7.444,134.34,134.31,1.48880095]
[1725543068297,7.79511321,134.35,134.28,1.48885883]
[1725543068519,7.79511321,134.35,134.26,15.3663]
[1725543068728,7.4461,134.3,134.26,15.3663]
[1725543068896,7.4461,134.3,134.25,6.6338]
[1725543068897,7.4466,134.29,134.25,6.6338]
[1725543069095,7.4466,134.29,134.23,26.0731]
[1725543069521,7.4466,134.29,134.22,16.2127]
[1725543069522,18.6122,134.33,134.22,16.2127]
[1725543069831,7.449,134.25,134.2,25.0782]
[1725543070197,18.6147,134.31,134.21,8.94024657]
[1725543070623,18.6096,134.34,134.22,18.625]
[1725543070843,7.4476,134.28,134.22,26.0751]
[1725543071201,7.4476,134.28,134.23,1.48956791]
[1725543071399,7.4476,134.28,134.24,1.48954041]
[1725543072820,7.4447,134.33,134.27,7.4472]
[1725543073028,7.4447,134.33,134.28,1.48904228]
[1725543073400,7.445,134.32,134.28,1.48904228]
[1725543073600,7.79511321,134.35,134.26,41.5572]
[1725543074017,7.79511321,134.35,134.27,1.48922911]
[1725543074018,7.4454,134.31,134.27,1.48922911]
[1725543074818,7.4449,134.32,134.27,8.93682911]
[1725543075203,7.4443,134.33,134.28,7.4471]
[1725543075627,7.79511321,134.35,134.28,7.4471]
[1725543075628,7.79511321,134.35,134.29,1.48888951]
[1725543075813,7.4438,134.34,134.3,1.48874751]
[1725543076506,7.79562918,134.35,134.3,20.10274751]
[1725543076711,18.6031,134.41,134.3,1.48874751]
[1725543076940,7.4416,134.38,134.34,7.4437]
[1725543077140,7.4416,134.38,134.32,26.0558]
[1725543077721,7.441,134.39,134.33,1.48837419]
[1725543077944,7.4416,134.38,134.32,18.6114]
[1725543078244,7.79287355,134.4,134.33,1.48837741]
[1725543078417,7.4414,134.39,134.34,7.4436]
[1725543078849,7.4415,134.38,134.35,1.48831392]
[1725543079051,7.79287355,134.4,134.36,1.48839818]
[1725543079342,34.7157,134.46,134.36,1.48839818]
[1725543079542,34.7157,134.46,134.34,15.6445]
[1725543079543,7.79167529,134.44,134.34,15.6445]
[1725543079732,7.4405,134.4,134.34,23.0882]
[1725543079924,18.5976,134.43,134.34,23.0882]
[1725543080406,7.4416,134.38,134.34,15.6445]
[1725543080826,7.441,134.39,134.35,1.48843636]
[1725543081031,7.4405,134.4,134.36,1.48829882]
[1725543081237,7.44,134.41,134.35,7.4431]
[1725543081434,7.79167529,134.44,134.34,15.6445]
[1725543081641,7.79167529,134.44,134.35,1.48824746]
[1725543082024,7.79167529,134.44,134.34,15.6445]
[1725543082227,7.4412,134.39,134.34,23.0882]
[1725543082437,7.4412,134.39,134.34,15.6445]
[1725543082921,7.4416,134.38,134.34,15.6445]
[1725543083344,26.38737529,134.44,134.34,15.6445]
[1725543083670,7.4417,134.38,134.34,15.6445]
[1725543084227,26.38737529,134.44,134.34,15.6445]
[1725543084741,7.442,134.38,134.34,15.6445]
[1725543084940,18.5996,134.42,134.29,22.6268]
[1725543084941,7.4434,134.35,134.29,22.6268]
[1725543085124,7.79167529,134.44,134.29,22.6268]
[1725543085125,7.444,134.34,134.29,22.6268]
[1725543085448,7.4443,134.33,134.29,22.6268]
[1725543085746,32.047,134.4,134.25,22.472]
[1725543085930,7.4475,134.28,134.25,22.472]
[1725543086124,7.4476,134.27,134.23,18.6241]
[1725543086444,7.4476,134.27,134.22,7.4504]
[1725543086673,18.6082,134.35,134.23,1.48954007]
[1725543086976,18.6082,134.35,134.21,58.939]
[1725543086977,18.6082,134.35,134.24,26.0713]
[1725543087152,18.612,134.33,134.21,21.685]
[1725543087329,7.4471,134.28,134.22,7.4499]
[1725543087642,18.612,134.33,134.21,21.685]
[1725543087643,7.4465,134.3,134.21,21.685]
[1725543087844,7.4465,134.3,134.24,7.4492]
[1725543088023,7.4468,134.29,134.24,7.4492]
[1725543088225,7.4468,134.29,134.23,7.4498]
[1725543088441,7.4473,134.28,134.23,7.4498]
[1725543088623,7.4466,134.29,134.24,7.4492]
[1725543088834,7.4461,134.3,134.25,7.4483]
[1725543089032,7.4465,134.29,134.25,1.48941499]
[1725543089353,18.612,134.33,134.25,1.48941499]
[1725543089354,7.4461,134.3,134.25,1.48941499]
[1725543089650,7.4461,134.3,134.25,7.4484]
[1725543089823,7.79769799,134.32,134.28,7.447]
[1725543090022,7.4453,134.32,134.27,7.4475]
[1725543090218,7.447,134.29,134.24,7.4488]
[1725543090528,7.79717713,134.32,134.23,18.6244]
[1725543090930,7.4471,134.28,134.24,1.48961964]
[1725543091227,26.41047713,134.32,134.25,1.48948495]
[1725543091228,7.79717713,134.32,134.25,1.48948495]
[1725543091436,7.79717713,134.32,134.25,20.11038495]
[1725543091638,7.79717713,134.32,134.21,40.3112]
[1725543091953,7.4466,134.29,134.24,7.4492]
[1725543092258,18.6147,134.31,134.21,40.3112]
[1725543092457,7.4508,134.22,134.17,39.8865]
[1725543092747,7.4522,134.19,134.14,26.092]
[1725543092996,7.4516,134.2,134.15,7.4542]
[1725543093636,7.4535,134.17,134.13,22.8409]
[1725543093826,18.6257,134.23,134.13,22.8409]
[1725543094038,7.4521,134.19,134.13,30.2958]
[1725543094346,7.4513,134.21,134.14,18.6368]
[1725543094557,7.4505,134.22,134.15,1.49050481]
[1725543094849,18.6207,134.26,134.17,18.633]
[1725543095251,18.6207,134.26,134.18,1.49031976]
[1725543095551,7.4499,134.23,134.18,1.49031976]
[1725543096353,7.4523,134.19,134.13,41.4788]
[1725543096849,7.4523,134.19,134.14,7.4548]
[1725543097246,18.6243,134.24,134.15,7.4542]
[1725543097555,18.6243,134.24,134.16,1.49062899]
[1725543098059,18.6243,134.24,134.15,7.4542]
[1725543098261,7.4515,134.2,134.15,7.4542]
[1725543098434,7.4515,134.2,134.16,1.49052414]
[1725543099034,18.6243,134.24,134.16,1.49052414]
[1725543099251,18.6243,134.24,134.15,18.6345]
[1725543099446,7.451,134.21,134.15,18.6345]
[1725543099949,7.451,134.21,134.16,7.4533]
[1725543100156,7.4505,134.22,134.16,1.49052039]
[1725543100354,7.4505,134.22,134.17,7.453]
[1725543100551,7.79779127,134.21,134.18,1.49041268]
[1725543100834,15.24919127,134.21,134.17,18.6321]
[1725543100989,7.4505,134.22,134.17,26.0851]
[1725543101135,18.6197,134.27,134.17,18.6321]
[1725543101136,7.451,134.21,134.17,18.6321]
[1725543101336,7.4516,134.2,134.14,18.6367]
[1725543101627,7.4516,134.2,134.13,22.8409]
[1725543101628,7.4507,134.22,134.17,7.4527]
[1725543101839,7.451,134.21,134.17,7.4527]
[1725543102426,15.25036556,134.23,134.18,7.4526]
[1725543103237,7.80046556,134.23,134.2,7.4514]
[1725543103435,7.4492,134.25,134.2,26.0796]
[1725543103631,15.24968112,134.26,134.21,8.94098673]
[1725543104065,7.80138112,134.26,134.22,7.4503]
[1725543104367,7.80138112,134.26,134.23,7.4494]
[1725543104541,7.80138112,134.26,134.24,20.11236681]
[1725543104743,7.4461,134.3,134.26,7.4481]
[1725543104951,7.4461,134.3,134.24,18.6227]
[1725543105150,7.4456,134.31,134.26,7.4481]
[1725543105352,7.4456,134.31,134.27,8.9369165]
[1725543105532,15.24361478,134.32,134.27,7.4476]
[1725543105731,15.24361478,134.32,134.27,8.93684303]
[1725543106052,7.4464,134.3,134.26,18.6198]
[1725543107051,7.4471,134.28,134.24,7.4492]
[1725543107562,7.4466,134.29,134.24,7.4492]
[1725543107875,7.79861478,134.32,134.25,20.11079541]
[1725543108055,7.79861478,134.32,134.25,18.6213]
[1725543108367,7.4455,134.31,134.26,7.448]
[1725543108543,7.79861478,134.32,134.25,26.0697]
[1725543109066,26.41151478,134.32,134.22,18.6253]
[1725543109272,7.4482,134.27,134.22,26.0756]
[1725543109636,26.41151478,134.32,134.22,18.6253]
[1725543109637,7.4483,134.26,134.22,18.6253]
[1725543109840,7.4483,134.26,134.22,26.0757]
[1725543110082,7.4483,134.26,134.21,22.9084]
[1725543110083,18.6155,134.3,134.21,22.9084]
[1725543110247,7.4489,134.25,134.21,30.3593]
[1725543110582,18.6155,134.3,134.22,1.48985708]
[1725543110891,7.4495,134.24,134.21,22.9084]
[1725543111045,7.4522,134.19,134.17,21.9022]
[1725543113263,7.451,134.21,134.17,21.9022]
[1725543113457,7.451,134.21,134.18,1.49049168]
[1725543113645,7.4505,134.22,134.18,1.49049168]